lending/lending_fUSD_20240202
["ID","MTS","AMOUNT","RATE_DAILY","PERIOD"]
[313185518,1706898484782,-218.65413859,0.00022547,2]
[313185519,1706898484808,-156.82,0.00022548,2]
[313185520,1706898484830,-353.29,0.00022548,2]
[313185521,1706898484855,-156.82,0.00022663,2]
[313185522,1706898484882,-393.15011915,0.000227,2]
[313185523,1706898484905,-188.82,0.00022765,2]
[313185524,1706898484929,-156.82,0.00022778,2]
[313185525,1706898484950,-150.0,0.00022798,2]
[313185526,1706898484971,-150.0,0.00022798,2]
[313185527,1706898484994,-1968.0057,0.00022799,2]
[313185528,1706898485031,-421.8746,0.00022799,2]
[313185529,1706898485052,-9049.34,0.00022799,2]
[313185530,1706898485075,-156.82,0.00022893,2]
[313185531,1706898485098,-289.74601572,0.00022897,2]
[313185532,1706898485121,-365.07230987,0.00022897,2]
[313185533,1706898485144,-525.44510824,0.00022897,2]
[313185534,1706898485166,-155.0,0.00022898,2]
[313185535,1706898485193,-326.92521988,0.00022898,2]
[313185536,1706898485217,-42042.58015381,0.00022899,2]
[313185538,1706898525026,-155.0,0.00022897,2]
[313185539,1706898525048,-242.49583705,0.00022898,2]
[313185540,1706898525071,-219.46515369,0.00022899,2]
[313185541,1706898581394,441.35,0.00020157,2]
[313185542,1706898581789,441.35,0.00022421,2]
[313185616,1706898632664,-247.73314621,0.00022668,2]
[313185618,1706898632674,-153.33974209,0.00022799,2]
[313185619,1706898632684,-153.33974198,0.00022805,2]
[313185621,1706898632694,-153.33974198,0.00022811,2]
[313185623,1706898632703,-153.33974198,0.00022817,2]
[313185625,1706898632715,-37.15327066,0.00022823,2]
[313185628,1706898632728,-116.18647132,0.00022823,2]
[313185630,1706898632736,-153.33974198,0.00022829,2]
[313185632,1706898632746,-153.33974198,0.00022835,2]
[313185634,1706898632754,-153.33974198,0.00022841,2]
[313185636,1706898632763,-153.33974198,0.00022847,2]
[313185638,1706898632772,-153.33974198,0.00022852,2]
[313185639,1706898632782,-153.33974198,0.00022858,2]
[313185641,1706898632791,-153.33974198,0.00022864,2]
[313185643,1706898632800,-153.33974198,0.0002287,2]
[313185645,1706898632810,-153.33974198,0.00022876,2]
[313185648,1706898632820,-153.33974198,0.00022882,2]
[313185649,1706898632830,-153.33974198,0.00022888,2]
[313185652,1706898632839,-153.33974198,0.00022894,2]
[313185654,1706898632848,-139.99391693,0.00022898,2]
[313185657,1706898632871,-15.19458966,0.00022898,2]
[313185659,1706898632880,-150.0,0.00022898,2]
[313185661,1706898632889,-1747.29535554,0.00022899,2]
[313185663,1706898632900,-550.0,0.00022899,2]
[313185671,1706898632963,-25439.11461521,0.00022899,2]
[313185674,1706898632986,-345.3,0.00022899,2]
[313185675,1706898632998,-1141.40303688,0.00022899,2]
[313185676,1706898633010,-12962.29331411,0.00022899,2]
[313185677,1706898633025,-122355.67801728,0.00022899,2]
[313185679,1706898638168,-28671.80255348,0.00022899,2]
[313185680,1706898638178,-228.31643771,0.00022899,2]
[313185681,1706898638188,-2507.87927007,0.00022899,2]
[313185682,1706898638201,-286.05956743,0.00022899,2]
[313185683,1706898638210,-523.8010228,0.00022899,2]
[313185684,1706898638220,-156.40532047,0.000229,2]
[313185685,1706898638229,-334.56640616,0.000229,2]
[313185686,1706898638239,-153.33974198,0.000229,2]
[313185687,1706898638248,-150.0,0.00022938,2]
[313185688,1706898638260,-216.03758245,0.00022974,2]
[313185689,1706898638269,-588.39240535,0.00022986,2]
[313185691,1706898638281,-878.60759465,0.00022986,2]
[313185693,1706898638291,-187.14142257,0.00022989,2]
[313185694,1706898638300,-187.14142257,0.0002299,2]
[313185695,1706898638310,-212.07944382,0.00022997,2]
[313185696,1706898638319,-157.98255968,0.00022997,2]
[313185697,1706898638329,-214.64312576,0.00022997,2]
[313185699,1706898638339,-1066.91620343,0.00022997,2]
[313185701,1706898638348,-178.94185082,0.00022997,2]
[313185703,1706898638357,-157.02308234,0.00022997,2]
[313185705,1706898638367,-248.82203226,0.00022997,2]
[313185707,1706898638377,-317.92623857,0.00022997,2]
[313185709,1706898638386,-410.8508133,0.00022997,2]
[313185711,1706898638396,-3349.70911831,0.00022997,2]
[313185713,1706898638408,-62.19619027,0.00022997,2]
[313185715,1706898638417,-201.90759892,0.00022997,2]
[313185717,1706898638426,-36.92657454,0.00022997,2]
[313185720,1706898638437,-119.583021,0.00022997,2]
[313185722,1706898638446,-190.54461324,0.00022997,2]
[313185724,1706898638455,-164.34738147,0.00022997,2]
[313185726,1706898638465,-1244.35715284,0.00022997,2]
[313185728,1706898638474,-335.75552564,0.00022997,2]
[313185730,1706898638483,-318.39608403,0.00022997,2]
[313185732,1706898638492,-2031.43899521,0.00022997,2]
[313185734,1706898638506,-17968.56100479,0.00022997,2]
[313185736,1706898638515,-201.2269708,0.00022998,2]
[313185738,1706898638523,-1943.3553205,0.00022998,2]
[313185740,1706898638532,-508.40383712,0.00022998,2]
[313185745,1706898638572,-435.87771536,0.00022998,2]
[313185749,1706898638604,-198.62101697,0.00022998,2]
[313185751,1706898638613,-337.26118422,0.00022998,2]
[313185754,1706898638623,-507.36267549,0.00022998,2]
[313185756,1706898638633,-701.01986545,0.00022998,2]
[313185758,1706898638643,-261.17719989,0.00022998,2]
[313185760,1706898638652,-155.19414547,0.00022998,2]
[313185762,1706898638662,-156.39622994,0.00022998,2]
[313185764,1706898638672,-82.05413231,0.00022998,2]
[313185766,1706898638684,-74.4447084,0.00022998,2]
[313185768,1706898638694,-322.72479377,0.00022998,2]
[313185770,1706898638703,-257.53731975,0.00022998,2]
[313185773,1706898638719,-561.11018765,0.00022998,2]
[313185788,1706898644133,-158.54166034,0.00022997,2]
[313185789,1706898644143,-181.24950927,0.00022997,2]
[313185790,1706898644154,-13.45923478,0.00022998,2]
[313185791,1706898644166,-859.77482457,0.00022998,2]
[313185792,1706898644175,-204.35837107,0.00022998,2]
[313185793,1706898644185,-342.60580933,0.00022998,2]
[313185794,1706898644194,-181.65130825,0.00022998,2]
[313185795,1706898644204,-163.52286408,0.00022998,2]
[313185796,1706898644213,-156.37062616,0.00022998,2]
[313185797,1706898644222,-196.79810667,0.00022998,2]
[313185798,1706898644232,-155.0,0.00022998,2]
[313185799,1706898644242,-461.70697186,0.00022998,2]
[313185800,1706898644251,-155.0,0.00022998,2]
[313185801,1706898644260,-235.2545301,0.00022998,2]
[313185802,1706898644270,-158.30384599,0.00022998,2]
[313185803,1706898644279,-234.30470207,0.00022998,2]
[313185804,1706898644288,-269.19124795,0.00022998,2]
[313185805,1706898644298,-156.14053271,0.00022998,2]
[313185807,1706898644307,-384.9164604,0.00022998,2]
[313185809,1706898644316,-157.19234731,0.00022998,2]
[313185811,1706898644326,-196.2404476,0.00022998,2]
[313185813,1706898644335,-249.44582608,0.00022998,2]
[313185815,1706898644345,-207.2276778,0.00022998,2]
[313185817,1706898644356,-350.0090091,0.00022998,2]
[313185818,1706898644747,-1009.9751626,0.00022998,2]
[313185819,1706898644758,-2545.01180366,0.00022998,2]
[313185820,1706898644768,-418.25522566,0.00022998,2]
[313185821,1706898644777,-155.3324332,0.00022998,2]
[313185822,1706898644788,-228.78848612,0.00022998,2]
[313185823,1706898644797,-277.28967739,0.00022998,2]
[313185824,1706898644806,-929.50886508,0.00022998,2]
[313185825,1706898644815,-155.32467766,0.00022998,2]
[313185826,1706898644824,-8179.71152361,0.00022998,2]
[313185827,1706898644833,-324.53325712,0.00022998,2]
[313185828,1706898644842,-156.2918762,0.00022998,2]
[313185829,1706898644851,-475.44124884,0.00022998,2]
[313185830,1706898644861,-155.0,0.00022998,2]
[313185831,1706898644872,-177.95955757,0.00022998,2]
[313185832,1706898644881,-200.4169865,0.00022998,2]
[313185833,1706898644891,-163.79827886,0.00022998,2]
[313185834,1706898644900,-156.25688913,0.00022998,2]
[313185835,1706898644909,-156.10718307,0.00022998,2]
[313185836,1706898644918,-158.64853725,0.00022998,2]
[313185837,1706898644928,-155.327271,0.00022998,2]
[313185838,1706898644938,-1643.49617115,0.00022998,2]
[313185839,1706898644947,-156.93056967,0.00022998,2]
[313185840,1706898644956,-385.5449845,0.00022998,2]
[313185841,1706898644966,-500.0,0.00022998,2]
[313185842,1706898644975,-508.95671337,0.00022998,2]
[313185843,1706898644984,-355.14551417,0.00022998,2]
[313185844,1706898644994,-3333.08138673,0.00022998,2]
[313185845,1706898645004,-241.87504657,0.00022998,2]
[313185846,1706898645013,-156.43646517,0.00022998,2]
[313185847,1706898645023,-249.46647659,0.00022998,2]
[313185848,1706898645032,-156.05124597,0.00022998,2]
[313185849,1706898645041,-161.10503934,0.00022998,2]
[313185850,1706898645051,-281.29640367,0.00022998,2]
[313185851,1706898645061,-203.0,0.00022998,2]
[313185852,1706898645070,-155.0,0.00022999,2]
[313185853,1706898645079,-193.62669506,0.00022999,2]
[313185855,1706898645089,-1059746.75494358,0.00022999,2]
[313185857,1706898645098,-219.43998333,0.00022999,2]
[313185859,1706898645108,-285.22294561,0.00022999,2]
[313185860,1706898645117,-669.93186281,0.00022999,2]
[313185862,1706898645127,-300.0,0.00022999,2]
[313185864,1706898645136,-300.0,0.00022999,2]
[313185866,1706898645145,-300.0,0.00022999,2]
[313185868,1706898645154,-404.55799692,0.00022999,2]
[313185870,1706898645163,-500.0,0.00022999,2]
[313185872,1706898645172,-500.0,0.00022999,2]
[313185874,1706898645181,-500.0,0.00022999,2]
[313185876,1706898645190,-500.0,0.00022999,2]
[313185878,1706898645199,-500.0,0.00022999,2]
[313185880,1706898645208,-489.13477534,0.00022999,2]
[313185882,1706898645218,-400.91353198,0.00022999,2]
[313185884,1706898645227,-500.0,0.00022999,2]
[313185886,1706898645236,-500.0,0.00022999,2]
[313185888,1706898645246,-500.0,0.00022999,2]
[313185891,1706898645256,-425569.54785508,0.00023,3]
[313185892,1706898645266,-2379230.84078938,0.00023,2]
[313185894,1706898645278,-151537.16736205,0.00023,2]
[313185897,1706898645294,-247.73314621,0.00022767,2]
[313185899,1706898645302,-58.85599827,0.00023,2]
[313185901,1706898645314,-430.61952,0.00023,2]
[313185904,1706898645329,-14713.41358515,0.00023,2]
[313185906,1706898645340,-1492.32960498,0.00023,2]
[313185908,1706898645351,-791.32651104,0.00023,2]
[313185911,1706898645362,-429.465,0.00023,2]
[313185913,1706898645373,-1444.49629537,0.00023,2]
[313185928,1706898645507,-2262.50270725,0.00023,2]
[313185930,1706898645518,-377.63072068,0.00023,2]
[313185932,1706898645529,-1600.65,0.00023,2]
[313185935,1706898645547,-690.03922118,0.00023,2]
[313186011,1706898646657,-5568.91204734,0.00023,2]
[313186012,1706898646667,-226755.03739215,0.00023,2]
[313186013,1706898646686,-3864.68196048,0.00023,2]
[313186014,1706898646713,-10000.0,0.00023,2]
[313186017,1706898848612,1000.0,0.000225,2]
[313186018,1706898885366,492.51,0.00022485,2]
[313186019,1706898885620,1666.56614868,0.000225,2]
[313186021,1706898897635,868.28096346,0.000225,2]
[313186022,1706898913629,868.28096346,0.000225,2]
[313186023,1706898933636,868.28096346,0.000225,2]
[313186024,1706898949640,868.28096346,0.000225,2]
[313186025,1706898965645,868.28096346,0.000225,2]
[313186026,1706898978444,200.0,0.00021907,2]
[313186027,1706898984048,868.28096346,0.000225,2]
[313186028,1706898997772,544.18,0.0001999,2]
[313186029,1706898998478,544.18,0.00022253,2]
[313186030,1706899002053,868.28096346,0.00021907,2]
[313186031,1706899018055,868.28096346,0.00021907,2]
[313186032,1706899034337,868.28096346,0.00021907,2]
[313186033,1706899056052,868.28096346,0.00021907,2]
[313186034,1706899056283,156.82,0.00022058,2]
[313186035,1706899076053,868.28096346,0.00021907,2]
[313186038,1706899077908,336.83,0.00021885,2]
[313186039,1706899084044,23900.0,0.00021885,2]
[313186040,1706899094060,188.72784525,0.00021907,2]
[313186041,1706899097652,250.0,0.00021918,2]
[313186042,1706899192026,1439.98,0.00021885,2]
[313186043,1706899300684,353.38,0.00022,2]
[313186044,1706899310979,617.92309023,0.00022,2]
[313186045,1706899335250,318.34,0.00021885,2]
[313186046,1706899344210,191.82,0.00017515,2]
[313186047,1706899345271,605.99,0.00021894,2]
[313186048,1706899357152,-156.82,0.00022633,2]
[313186049,1706899357173,-713.35,0.0002267,2]
[313186050,1706899357194,-265.648,0.00022698,2]
[313186051,1706899357214,-2460.06,0.00022698,2]
[313186052,1706899357236,-291.16777396,0.00022699,2]
[313186053,1706899357257,-150.0,0.0002274,2]
[313186054,1706899357281,-150.0,0.00022753,2]
[313186055,1706899357303,-150.0,0.00022787,2]
[313186056,1706899357324,-150.0,0.00022796,2]
[313186057,1706899357349,-150.0,0.00022796,2]
[313186058,1706899357371,-150.0,0.00022796,2]
[313186059,1706899357392,-623.18,0.00022797,2]
[313186060,1706899357412,-457.63,0.00022797,2]
[313186061,1706899357436,-729.39,0.00022798,2]
[313186062,1706899357460,-856.93,0.00022798,2]
[313186063,1706899357483,-42545.82422604,0.00022798,2]
[313186064,1706899397767,-50000.0,0.00022798,2]
[313186065,1706899413817,489.76,0.00020273,2]
[313186066,1706899417289,-489.76,0.00022537,2]
[313186067,1706899417313,-149510.24,0.00022798,2]
[313186068,1706899468214,-1247.45526918,0.00022698,2]
[313186069,1706899468238,-752.54473082,0.00022699,2]
[313186070,1706899468676,-494.91053835,0.00022699,2]
[313186071,1706899468699,-1505.08946165,0.00022798,2]
[313186072,1706899469376,-2000.0,0.00022798,2]
[313186073,1706899470053,-2000.0,0.00022798,2]
[313186074,1706899470445,-2000.0,0.00022798,2]
[313186075,1706899470849,-2000.0,0.00022798,2]
[313186076,1706899471386,-2000.0,0.00022798,2]
[313186077,1706899471885,-2000.0,0.00022798,2]
[313186078,1706899472319,-2000.0,0.00022798,2]
[313186079,1706899472729,-2000.0,0.00022798,2]
[313186080,1706899473181,-2000.0,0.00022798,2]
[313186081,1706899473574,-2000.0,0.00022798,2]
[313186082,1706899474034,-2000.0,0.00022798,2]
[313186083,1706899474470,-2000.0,0.00022798,2]
[313186084,1706899474875,-2000.0,0.00022798,2]
[313186085,1706899475351,-2000.0,0.00022798,2]
[313186086,1706899475814,-2000.0,0.00022798,2]
[313186087,1706899490516,-2000.0,0.00022798,2]
[313186088,1706899490934,-2000.0,0.00022798,2]
[313186089,1706899491402,-2000.0,0.00022798,2]
[313186090,1706899492189,-2000.0,0.00022798,2]
[313186091,1706899492737,-2000.0,0.00022798,2]
[313186092,1706899493392,-2000.0,0.00022798,2]
[313186093,1706899503883,-150.0,0.00022797,2]
[313186094,1706899503906,-150.0,0.00022797,2]
[313186095,1706899503928,-300.0,0.00022797,2]
[313186096,1706899503950,-1224.3,0.00022798,2]
[313186097,1706899522794,168.41,0.00021885,2]
[313186098,1706899545863,188.82,0.00022216,2]
[313186099,1706899564069,205.0,0.00022229,2]
[313186100,1706899593175,152.64318861,0.00022118,2]
[313186101,1706899593963,206.0,0.00022229,2]
[313186102,1706899618154,156.82,0.00022388,2]
[313186103,1706899721921,997.95531102,0.00022276,2]
[313186104,1706899723236,403.28512965,0.00021716,2]
[313186105,1706899724501,763.61156538,0.00022388,2]
[313186106,1706899726522,-943.91285857,0.00022796,2]
[313186107,1706899726544,-280.11299096,0.00022796,2]
[313186108,1706899726564,-292.94029215,0.00022796,2]
[313186109,1706899726585,-300.0,0.00022797,2]
[313186110,1706899726606,-183.03385832,0.00022798,2]
[313186111,1706899726884,5206.34277486,0.00022388,2]
[313186112,1706899727120,-2000.0,0.00022798,2]
[313186113,1706899727700,-2000.0,0.00022798,2]
[313186114,1706899728272,-2000.0,0.00022798,2]
[313186115,1706899728855,-2000.0,0.00022798,2]
[313186116,1706899729668,-2000.0,0.00022798,2]
[313186117,1706899730508,-2000.0,0.00022798,2]
[313186118,1706899730917,1036.55041269,0.00022388,2]
[313186119,1706899731171,-2000.0,0.00022798,2]
[313186120,1706899731758,-2000.0,0.00022798,2]
[313186121,1706899732336,-2000.0,0.00022797,2]
[313186122,1706899735740,2483.18794287,0.00022113,2]
[313186123,1706899744885,5204.70011666,0.00022388,2]
[313186124,1706899748299,-365.24008671,0.00022796,2]
[313186125,1706899748322,-628.01064,0.00022797,2]
[313186126,1706899748344,-161.72373742,0.00022797,2]
[313186127,1706899748365,-155.08954157,0.00022797,2]
[313186128,1706899748387,-525.29809218,0.00022797,2]
[313186129,1706899748410,-164.63790212,0.00022798,2]
[313186130,1706899748817,-2000.0,0.00022798,2]
[313186131,1706899749357,-2000.0,0.00022798,2]
[313186132,1706899750897,855.59624894,0.00022388,2]
[313186133,1706899757776,851.71961685,0.00022113,2]
[313186134,1706899757987,-2000.0,0.0002277,2]
[313186135,1706899758642,-2000.0,0.0002277,2]
[313186136,1706899759202,-489.0,0.0002277,2]
[313186137,1706899759225,-1511.0,0.00022798,2]
[313186142,1706899784870,-220.79849613,0.00022797,2]
[313186143,1706899784892,-1779.20150387,0.00022798,2]
[313186144,1706899785401,-2000.0,0.00022798,2]
[313186145,1706899802463,-2000.0,0.00022798,2]
[313186146,1706899803094,-2000.0,0.00022798,2]
[313186147,1706899803793,-2000.0,0.00022798,2]
[313186149,1706899815514,-2000.0,0.00022798,2]
[313186150,1706899816180,-2000.0,0.00022798,2]
[313186151,1706899817049,-2000.0,0.00022798,2]
[313186171,1706899834891,-368.18473738,0.00022796,2]
[313186172,1706899834900,-349.84526262,0.00022797,2]
[313186197,1706899835482,-341.59842813,0.00022797,2]
[313186198,1706899835492,-358.43337229,0.00022797,2]
[313186199,1706899835502,-155.0,0.00022797,2]
[313186200,1706899835511,-670.19339922,0.00022798,2]
[313186201,1706899835534,-4889.84198465,0.00022798,2]
[313186203,1706899838089,-7317.6642663,0.00022798,2]
[313186204,1706899838152,-364.89736001,0.00022798,2]
[313186205,1706899838163,-529.82133345,0.00022798,2]
[313186206,1706899838175,-14742.01920306,0.00022798,2]
[313186207,1706899838183,-2032.61828537,0.00022799,2]
[313186208,1706899838352,-1237.078,0.00022799,2]
[313186209,1706899838364,-3961.337,0.00022799,2]
[313186210,1706899838375,-13005.12856162,0.00022799,2]
[313186211,1706899838387,-540.90981559,0.00022799,2]
[313186212,1706899838398,-3199.999998,0.00022799,2]
[313186213,1706899838429,-2028.07605,0.00022799,2]
[313186214,1706899838441,-5058.86086469,0.00022799,2]
[313186216,1706899838456,-500.0,0.00022799,2]
[313186464,1706899841603,-5398.49934337,0.00022799,2]
[313186465,1706899841618,-1027.15,0.00022799,2]
[313186466,1706899841629,-510.72,0.00022799,2]
[313186467,1706899841640,-13868.07498136,0.00022799,2]
[313186468,1706899841649,-200.0,0.00022816,2]
[313186469,1706899841658,-1000.0,0.00022899,2]
[313186470,1706899841667,-156.40343903,0.000229,2]
[313186472,1706899841676,-2298.88933087,0.000229,2]
[313186474,1706899841685,-254.77180225,0.000229,2]
[313186476,1706899841694,-4743.9446,0.000229,2]
[313186478,1706899841703,-2803.0666,0.000229,2]
[313186480,1706899841712,-856.52809361,0.000229,2]
[313186482,1706899841722,-213.36543943,0.000229,2]
[313186484,1706899841731,-223.04427078,0.000229,2]
[313186486,1706899841741,-342.60580933,0.00022997,2]
[313186488,1706899841751,-637.19563978,0.00022998,2]
[313186491,1706899841763,-4711.10874324,0.00022999,2]
[313186493,1706899841773,-288.89965311,0.00022999,2]
[313186495,1706899841783,-155.65399982,0.00022999,2]
[313186497,1706899841792,-5560.16030571,0.00023,2]
[313186499,1706899841803,-789.810015,0.00023,2]
[313186501,1706899841815,-529.159995,0.00023,2]
[313186503,1706899841826,-810.16,0.00023,2]
[313186506,1706899841837,-13086.16229663,0.00023,2]
[313186508,1706899841848,-1534.58049772,0.00023,2]
[313186511,1706899841868,-1153.5,0.00023,2]
[313186513,1706899841879,-62848.16172577,0.00023,2]
[313186620,1706899843302,-591917.95992503,0.00023,2]
[313186621,1706899843314,-4298.02333603,0.00023,2]
[313186622,1706899843325,-775.44585755,0.00023,2]
[313186623,1706899843361,-337.39267826,0.00023,2]
[313186688,1706899846229,-145667.59595723,0.00023,2]
[313186693,1706899846288,-542.96175472,0.00023,2]
[313186695,1706899846300,-549.39783028,0.00023,2]
[313186700,1706899846350,-575214.98791812,0.00023,2]
[313186732,1706899860254,-475.81,0.00022767,2]
[313186733,1706899860276,-222.75436481,0.00022768,4]
[313186734,1706899860298,-1301.43563519,0.00022797,2]
[313186735,1706899860770,-1303.56456416,0.00022797,2]
[313186736,1706899869500,696.43543584,0.000227,2]
[313186737,1706899874632,-303.56456416,0.000227,2]
[313186738,1706899874656,-1696.43543584,0.000229,2]
[313186739,1706899875708,-2000.0,0.000229,2]
[313186740,1706899876041,-2000.0,0.000229,2]
[313186741,1706899876393,-2000.0,0.000229,2]
[313186742,1706899876811,-2000.0,0.000229,2]
[313186743,1706899877386,-2000.0,0.000229,2]
[313186744,1706899878240,-2000.0,0.000229,2]
[313186745,1706899878826,-2000.0,0.000229,2]
[313186746,1706899881211,-2000.0,0.000229,2]
[313186747,1706899881774,-2000.0,0.000229,2]
[313186748,1706899882319,-2000.0,0.000229,2]
[313186749,1706899882990,-2000.0,0.000229,2]
[313186750,1706899883620,-2000.0,0.000229,2]
[313186751,1706899891450,-1243.76,0.000229,2]
[313186752,1706899907762,1276.93041356,0.00022306,2]
[313186753,1706899929008,176.85,0.00022,2]
[313186754,1706899961805,185.86,0.00022476,2]
[313186755,1706899977791,167.79,0.00022476,2]
[313186756,1706899982796,499.77,0.00022476,2]
[313186757,1706899993676,250.0,0.00022343,2]
[313186758,1706900034993,23314.98,0.00022215,2]
[313186759,1706900046740,154.5,0.00022326,2]
[313186760,1706900046964,154.5,0.00022431,2]
[313186761,1706900047056,2000.0,0.00022159,2]
[313186762,1706900087134,250.0,0.00021903,2]
[313186763,1706900108573,6514.01,0.00021918,2]
[313186764,1706900110726,1279.37,0.00021903,2]
[313186765,1706900310308,200.0,0.000218,2]
[313186766,1706900315113,580.61,0.00019882,2]
[313186767,1706900315348,580.61,0.00022146,2]
[313186768,1706900332908,150.0,0.00022473,2]
[313186769,1706900363718,183.11,0.00021802,2]
[313186770,1706900376420,200.0,0.00021802,2]
[313186771,1706900382811,484.8,0.00021802,2]
[313186772,1706900394500,150.0,0.00021806,2]
[313186773,1706900444430,168.41,0.00021801,2]
[313186774,1706900504450,4165.69478956,0.00022501,2]
[313186775,1706900509108,155.0,0.00022501,2]
[313186776,1706900514470,413.39356249,0.00022501,2]
[313186777,1706900516265,250.0,0.00022,2]
[313186778,1706900517516,250.0,0.00022274,2]
[313186779,1706900519899,155.0,0.00022501,2]
[313186780,1706900522885,155.0,0.00022501,2]
[313186781,1706900527276,155.0,0.00022501,2]
[313186782,1706900528462,372.35831287,0.00022501,2]
[313186783,1706900534711,518.38382827,0.00022501,2]
[313186784,1706900536179,315.24379737,0.00022501,2]
[313186785,1706900556035,176.85,0.00022,2]
[313186786,1706900556824,154.5,0.00021965,2]
[313186787,1706900557051,154.5,0.00022092,2]
[313186788,1706900557253,154.5,0.00022219,2]
[313186789,1706900557520,154.5,0.00022346,2]
[313186790,1706900557862,154.5,0.00022473,2]
[313186791,1706900604070,1066.14,0.00021792,2]
[313186792,1706900610905,456.70755767,0.00022473,7]
[313186793,1706900653272,150.0,0.00022,2]
[313186794,1706900700409,150.0,0.00022,2]
[313186795,1706900749012,522.54,0.00019867,2]
[313186796,1706900749382,522.54,0.00022131,2]
[313186797,1706900874322,612.16,0.00021785,2]
[313186798,1706900876047,185.86,0.00021785,2]
[313186799,1706900906967,158.8089,0.00022423,2]
[313186800,1706901001110,154.5,0.0002195,2]
[313186801,1706901001446,154.5,0.00022236,2]
[313186802,1706901004628,206.0,0.00021663,2]
[313186804,1706901028146,888.45,0.00021803,2]
[313186817,1706901032551,-0.04570159,0.00022508,2]
[313186818,1706901032563,-355.56286685,0.00022508,2]
[313186819,1706901032572,-518.38382827,0.00022508,2]
[313186820,1706901032582,-155.0,0.00022509,2]
[313186821,1706901032592,-247.45142877,0.0002251,2]
[313186822,1706901032602,-846.60599611,0.00022511,2]
[313186823,1706901032622,-3319.08879345,0.00022511,2]
[313186824,1706901032631,-150.0,0.00022514,2]
[313186825,1706901032641,-364.91711088,0.0002252,2]
[313186826,1706901032651,-154.5,0.00022522,2]
[313186827,1706901032660,-336.48173878,0.00022548,2]
[313186832,1706901032693,-26.10690949,0.00022548,2]
[313186834,1706901032702,-176.85,0.00022548,2]
[313186836,1706901032711,-230.08829952,0.00022548,2]
[313186838,1706901032721,-191.83293913,0.000226,2]
[313186840,1706901032730,-676.42185206,0.00022612,2]
[313186842,1706901032742,-77245.80814794,0.00022612,2]
[313186844,1706901032751,-1578.72,0.00022628,2]
[313186846,1706901032760,-8204.0065,0.00022652,2]
[313186847,1706901032772,-158.8409691,0.00022696,2]
[313186849,1706901032782,-368.55900548,0.00022696,2]
[313186852,1706901032792,-186.57838311,0.00022696,2]
[313186853,1706901032803,-314.31237372,0.00022696,2]
[313186854,1706901032812,-416.38,0.00022698,2]
[313186855,1706901032822,-150.99,0.00022698,2]
[313186856,1706901032832,-500.0,0.000227,2]
[313186857,1706901032842,-170.40904936,0.00022708,2]
[313186858,1706901032851,-170.40904936,0.00022724,2]
[313186859,1706901032861,-150.0,0.00022734,2]
[313186860,1706901032871,-170.40904936,0.0002274,2]
[313186861,1706901032880,-150.0,0.0002275,2]
[313186862,1706901032889,-170.40904936,0.00022756,2]
[313186863,1706901032900,-150.0,0.00022757,2]
[313186864,1706901033034,-722.57,0.00022763,2]
[313186865,1706901033045,-150.0,0.00022769,2]
[313186866,1706901033054,-1420.52819895,0.0002277,2]
[313186867,1706901033063,-170.40904936,0.00022772,2]
[313186868,1706901033073,-170.40904936,0.00022788,2]
[313186869,1706901033082,-150.0,0.00022794,2]
[313186870,1706901033091,-3219.9262,0.00022798,2]
[313186871,1706901033100,-446.7859,0.00022798,2]
[313186872,1706901033109,-951.65233812,0.000228,2]
[313186873,1706901033118,-210.9070723,0.000228,2]
[313186874,1706901033127,-150.0,0.00022803,2]
[313186875,1706901033136,-170.40904936,0.00022804,2]